bitfinex/quotes_ETHUSD_20240729
["timestamp","ask_amount","ask_price","bid_price","bid_amount"]
[1722275301990,0.01180357,3325.0,3324.9,7.62389718]
[1722275303234,0.01180357,3325.0,3324.9,13.01259718]
[1722275303443,0.01180357,3325.0,3324.9,13.00499718]
[1722275303795,0.01180357,3325.0,3324.9,10.62389718]
[1722275304607,0.01180357,3325.0,3324.9,7.62389718]
[1722275304841,0.01180357,3325.0,3324.9,4.31459718]
[1722275304990,0.01180357,3325.0,3324.9,3.76459718]
[1722275305197,0.01180357,3325.0,3324.9,6.83234279]
[1722275305395,0.01180357,3325.0,3324.9,6.77219718]
[1722275305660,0.01180357,3325.0,3324.9,0.75699718]
[1722275305835,0.01180357,3325.0,3324.9,0.09446278]
[1722275306006,2.48030357,3325.0,3324.9,0.09446278]
[1722275308249,2.48030357,3325.0,3324.4,3.00803]
[1722275308968,2.48030357,3325.0,3324.3,3.00813]
[1722275309167,2.48030357,3325.0,3323.9,0.3017]
[1722275309168,2.48030357,3325.0,3324.5,3.00796]
[1722275309464,2.48030357,3325.0,3324.6,3.31461192]
[1722275309813,2.48030357,3325.0,3324.6,0.30681192]
[1722275310327,2.48030357,3325.0,3324.6,3.31468192]
[1722275311153,2.48030357,3325.0,3324.6,0.30681192]
[1722275311312,2.48030357,3325.0,3324.3,3.00813]
[1722275311516,2.48030357,3325.0,3324.5,3.00797]
[1722275312023,2.48030357,3325.0,3324.6,3.00784]
[1722275312745,2.48030357,3325.0,3324.1,3.00833]
[1722275313050,2.48030357,3325.0,3323.5,4.50878]
[1722275313051,2.48030357,3325.0,3324.2,0.300833]
[1722275313263,3.00761,3324.9,3323.7,3.00867]
[1722275313483,2.48030357,3325.0,3322.4,18.3156]
[1722275313484,2.3254,3324.6,3322.4,18.3156]
[1722275313635,5.33346,3324.4,3323.1,3.00922]
[1722275313834,5.33346,3324.4,3323.2,0.300922]
[1722275314067,5.33346,3324.4,3322.4,5.9456]
[1722275314068,2.3254,3324.3,3322.7,3.00957]
[1722275314285,2.3254,3324.3,3321.9,3.55]
[1722275314286,3.00831,3324.2,3322.9,3.00939]
[1722275314436,2.3254,3324.3,3322.9,3.00939]
[1722275314762,3.24078,3324.2,3323.0,3.310239]
[1722275315428,3.00836,3324.1,3323.0,0.300939]
[1722275315654,2.285,3324.0,3322.9,3.00938]
[1722275316627,2.285,3324.0,3322.7,3.00957]
[1722275316628,3.00852,3323.9,3322.7,3.00957]
[1722275316827,2.255,3323.8,3322.7,3.00957]
[1722275317026,2.255,3323.8,3322.6,0.3017]
[1722275317272,2.255,3323.8,3322.7,0.331142]
[1722275317427,5.2636,3323.8,3322.7,0.331142]
[1722275318945,2.255,3323.8,3322.7,3.340732]
[1722275319683,2.255,3323.8,3323.1,3.00915]
[1722275319990,2.255,3323.8,3323.2,0.36109413]
[1722275320168,2.3446,3324.9,3323.3,0.61017006]
[1722275320334,2.3446,3324.9,3323.6,3.00878]
[1722275320534,5.42367,3324.8,3323.4,3.00893]
[1722275320763,5.42367,3324.8,3323.6,3.00877]
[1722275320973,2.4159,3324.6,3323.3,3.00905]
[1722275321189,2.4159,3324.3,3323.1,3.00916]
[1722275321485,2.4159,3324.3,3323.2,3.00913]
[1722275322187,2.2565,3324.1,3322.8,3.3112]
[1722275322483,2.2565,3323.9,3322.8,0.3017]
[1722275322676,2.2565,3323.9,3322.9,0.3642342]
[1722275323262,2.2565,3323.9,3322.9,3.3736442]
[1722275323445,2.2565,3323.9,3323.2,3.00914]
[1722275323654,2.2565,3323.9,3323.4,3.00893]
[1722275323867,2.2565,3323.9,3323.3,0.300914]
[1722275324086,2.2565,3323.9,3323.3,3.309904]
[1722275324301,2.2565,3323.9,3323.3,0.300914]
[1722275324604,2.2565,3323.9,3323.5,3.00882]
[1722275324761,2.2565,3323.9,3323.3,3.309964]
[1722275324946,2.2565,3323.9,3323.4,3.3399564]
[1722275325147,2.3908,3324.9,3323.8,3.00854]
[1722275325482,2.3908,3324.9,3323.6,3.00878]
[1722275325483,2.3908,3324.8,3323.6,3.00871]
[1722275325684,2.3908,3324.8,3323.7,3.00868]
[1722275325854,2.3908,3324.8,3323.8,3.00859]
[1722275325855,0.539846,3324.7,3323.8,3.00859]
[1722275326051,2.3908,3324.8,3323.8,3.00859]
[1722275327047,2.3908,3324.8,3323.9,3.00851]
[1722275327274,2.3908,3324.8,3324.0,3.00842]
[1722275327665,2.3908,3324.8,3323.4,3.6415964]
[1722275327666,2.3908,3324.8,3323.8,3.00854]
[1722275328320,2.3908,3324.8,3323.6,3.00871]
[1722275328491,2.93182136,3324.8,3323.7,3.610445]
[1722275328798,2.93182136,3324.8,3324.0,3.00839]
[1722275328995,2.3908,3324.8,3323.9,3.00851]
[1722275329192,2.3908,3324.8,3324.0,3.00841]
[1722275329498,2.3908,3324.8,3323.4,3.6416164]
[1722275329499,2.3908,3324.8,3323.7,3.00868]
[1722275330008,0.01180357,3325.0,3324.0,1.5]
[1722275330163,0.01180357,3325.0,3324.5,3.00789]
[1722275330363,0.01180357,3325.0,3324.8,3.00768]
[1722275330676,0.01180357,3325.0,3324.9,6.0152]
[1722275331265,0.01180357,3325.0,3324.9,19.8397]
[1722275331266,3.57e-06,3325.0,3324.9,19.8397]
[1722275331616,0.005,3325.4,3325.3,10.82342]
[1722275331824,3.00536,3327.4,3325.3,10.82342]
[1722275331825,0.14541,3327.6,3325.8,1.5]
[1722275331964,0.14541,3327.6,3326.1,3.00652]
[1722275331965,3.00525,3327.5,3326.1,3.00652]
[1722275332180,3.00525,3327.5,3326.4,3.00624]
[1722275332181,2.4977,3327.5,3326.4,3.00624]
[1722275332520,2.4977,3327.5,3325.8,0.3017]
[1722275332736,2.4977,3327.5,3326.0,0.3017]
[1722275332882,2.662,3326.9,3325.0,1.5]
[1722275333235,2.3364,3327.2,3325.5,3.00704]
[1722275333236,3.0059,3326.8,3325.5,3.00704]
[1722275333379,9.73263,3327.1,3325.5,3.00704]
[1722275333380,3.00576,3327.0,3325.5,3.00704]
[1722275333719,6.55363,3327.1,3325.6,3.00692]
[1722275333922,2.3364,3327.2,3325.6,3.00692]
[1722275333923,2.3364,3327.2,3325.7,0.55]
[1722275334124,2.3364,3327.2,3325.8,0.36182291]
[1722275334296,2.57004,3327.2,3326.3,3.00627]
[1722275334889,2.57004,3327.2,3326.6,3.006]
[1722275335082,2.57004,3327.2,3326.7,3.00597]
[1722275335297,2.3364,3327.2,3326.7,3.00597]
[1722275335887,2.3364,3327.2,3326.5,3.00612]
[1722275336023,2.3364,3327.2,3326.6,3.00601]
[1722275336209,2.3364,3327.2,3326.4,3.00624]
[1722275336705,2.3364,3327.2,3326.5,3.00614]
[1722275337145,2.3364,3327.2,3326.6,3.00606]
[1722275337310,2.3364,3327.2,3326.6,0.300606]
[1722275337635,0.14541,3327.6,3326.8,3.00582]
[1722275338108,0.14541,3327.6,3326.6,3.36677005]
[1722275338445,0.14541,3327.6,3326.7,3.00597]
[1722275338851,0.14541,3327.6,3326.6,3.36678005]
[1722275339059,0.14541,3327.6,3326.4,3.30793]
[1722275339060,0.409391,3327.6,3326.4,3.30793]
[1722275339331,0.409391,3327.6,3326.5,3.00614]
[1722275339542,0.409391,3327.6,3326.3,3.30799]
[1722275339937,0.409391,3327.6,3326.5,3.00615]
[1722275340137,0.409391,3327.6,3326.5,3.336935]
[1722275340138,0.359391,3327.6,3326.5,3.336935]
[1722275340338,0.359391,3327.6,3326.7,3.00591]
[1722275340525,0.359391,3327.6,3327.1,0.33500962]
[1722275340965,0.09541,3327.6,3327.1,0.33500962]
[1722275341837,3.00553,3327.2,3327.1,0.33500962]
[1722275342043,3.00545,3327.3,3327.1,0.33500962]
[1722275342257,3.00541,3327.4,3327.1,0.33500962]
[1722275342593,3.00528,3327.5,3327.1,0.33500962]
[1722275342594,3.00553,3327.2,3327.1,0.33500962]
[1722275343151,5.30123,3327.2,3327.1,0.33500962]
[1722275343546,2.2957,3327.2,3327.1,0.33500962]
[1722275344373,2.2957,3327.2,3326.2,3.00642]
[1722275344706,3.0064,3326.3,3325.1,0.205]
[1722275344995,6.55408,3326.6,3324.6,0.300789]
[1722275344996,3.548,3326.1,3324.6,0.300789]
[1722275345168,5.4747,3326.2,3324.6,0.300789]
[1722275345349,5.4747,3326.2,3324.5,3.00796]
[1722275345350,6.55471,3325.9,3324.5,3.00796]
[1722275345551,6.18553,3326.1,3323.9,1.5]
[1722275345552,3.00653,3326.1,3323.9,1.5]
[1722275345747,3.00653,3326.1,3324.7,3.00777]
[1722275345748,3.0,3326.0,3324.7,3.00777]
[1722275346005,3.0,3326.0,3324.9,3.00753]
[1722275346152,2.2957,3326.2,3325.0,3.308193]
[1722275346354,2.2957,3326.2,3325.0,0.300753]
[1722275346577,2.2957,3326.2,3324.9,3.00753]
[1722275346791,5.30214,3326.2,3324.6,3.00786]
[1722275346944,3.0066,3326.1,3324.7,3.00778]
[1722275347146,3.00673,3325.9,3324.5,3.00793]
[1722275347390,5.6669,3325.6,3323.9,3.00843]
[1722275347601,8.67388,3325.6,3324.1,3.00833]
[1722275347765,3.0071,3325.5,3324.2,3.00819]
[1722275348092,3.0071,3325.5,3323.9,3.0085]
[1722275348093,3.00725,3325.3,3323.9,3.00845]
[1722275348289,3.00725,3325.3,3323.6,3.31048]
[1722275348290,3.00743,3325.1,3324.0,0.300845]
[1722275348588,3.00743,3325.1,3324.0,3.00841]
[1722275348589,2.4879,3325.1,3324.0,3.00841]
[1722275348774,2.4879,3325.1,3324.1,0.06016483]
[1722275348974,2.4879,3325.1,3324.1,3.06842483]
[1722275349160,2.4879,3325.1,3324.0,0.06015998]
[1722275349501,2.4879,3325.1,3324.3,3.00814]
[1722275349646,2.4879,3325.1,3324.4,0.300814]
[1722275349845,2.4879,3325.1,3324.4,0.36097399]
[1722275350045,2.4879,3325.1,3323.9,0.3017]
[1722275350046,2.4879,3325.1,3324.0,0.06015235]
[1722275350378,2.4879,3325.1,3324.6,3.00786]
[1722275350544,2.4879,3325.1,3324.5,3.00796]
[1722275350748,2.4879,3325.1,3324.1,0.8517]
[1722275350749,2.4879,3325.1,3324.6,3.00787]
[1722275350950,2.4879,3325.1,3324.4,3.00801]
[1722275351190,2.4879,3325.1,3324.5,0.850801]
[1722275351356,2.4879,3325.1,3324.5,0.300801]
[1722275351560,2.4879,3325.1,3324.6,0.6101535]
[1722275352101,2.4879,3325.1,3324.5,3.06805026]
[1722275352393,2.4879,3325.1,3324.0,3.31011]
[1722275352569,2.4879,3325.1,3324.1,0.331011]
[1722275352885,2.4879,3325.1,3323.7,3.00864]
[1722275353189,3.00752,3325.0,3323.7,3.00868]
[1722275353398,3.00763,3324.9,3323.7,3.00868]
[1722275354251,3.0077,3324.8,3323.6,2.82]
[1722275354599,3.00536,3327.4,3325.9,3.00668]
[1722275354896,3.00536,3327.4,3324.1,0.3017]
[1722275354897,3.0054,3327.4,3325.4,3.00714]
[1722275355041,3.0054,3327.4,3324.7,3.548]
[1722275355042,3.548,3327.1,3325.5,0.3608531]
[1722275355243,3.32021493,3327.3,3325.9,3.00669]
[1722275355443,3.0055,3327.3,3325.9,3.00669]
[1722275355649,3.00553,3327.2,3325.8,3.00679]
[1722275355850,0.682241,3327.5,3326.2,3.00639]
[1722275356002,0.682241,3327.5,3326.3,3.306909]
[1722275356208,0.09541,3327.6,3326.3,0.300639]
[1722275356402,0.09541,3327.6,3326.5,3.00614]
[1722275356809,0.09541,3327.6,3326.5,3.00615]
[1722275357505,0.09541,3327.6,3326.6,3.00606]
[1722275357709,2.51941,3327.6,3326.6,3.00606]
[1722275358065,3.07185,3327.6,3326.6,3.00606]
[1722275358220,2.51941,3327.6,3326.6,3.00606]
[1722275358664,2.51941,3327.6,3326.3,3.306969]
[1722275358851,2.51941,3327.6,3326.2,0.3017]
[1722275358852,3.00528,3327.5,3326.0,3.0066]
[1722275359014,3.00528,3327.5,3326.3,3.00633]
[1722275359360,3.00528,3327.5,3326.1,0.55]
[1722275359646,2.51941,3327.6,3326.3,3.00633]
[1722275359948,0.870349,3327.5,3326.3,3.361963]
[1722275360176,3.875619,3327.5,3326.3,3.361963]
[1722275360660,3.875619,3327.5,3326.3,0.355633]
[1722275361651,3.875619,3327.5,3325.9,0.3017]
[1722275361652,3.00571,3327.0,3325.7,3.00688]
[1722275361961,3.00571,3327.0,3325.8,3.00679]
[1722275362105,4.049349,3327.5,3325.4,0.3017]
[1722275362106,2.4322,3326.8,3325.4,0.3017]
[1722275362309,3.00601,3326.7,3325.4,3.30879]
[1722275362535,0.24322,3326.7,3325.4,0.3017]
[1722275362826,0.24322,3326.7,3324.5,3.00797]
[1722275362827,2.2797,3325.9,3324.5,3.00797]
[1722275363036,8.46541,3325.9,3324.2,3.00822]
[1722275363236,8.46541,3325.9,3324.3,3.06828581]
[1722275363445,0.846541,3325.8,3324.7,3.00777]
[1722275363631,0.846541,3325.8,3324.6,3.00785]
[1722275364389,2.2797,3325.9,3324.7,3.00778]
[1722275364677,2.2797,3325.9,3324.6,3.00787]
[1722275364890,2.2797,3325.9,3324.8,3.00762]
[1722275365093,2.2797,3325.9,3325.0,3.00749]
[1722275365393,2.2797,3325.9,3324.5,0.3017]
[1722275365394,2.2797,3325.9,3324.6,0.06015031]
[1722275365593,2.2797,3325.9,3324.9,3.0076]
[1722275365898,2.2797,3325.9,3324.7,0.55]
[1722275366237,2.2797,3325.9,3324.7,3.55775]
[1722275366955,3.00642,3326.3,3324.5,0.3017]
[1722275366956,6.18535,3326.3,3324.8,3.00761]
[1722275367173,3.624975,3326.2,3324.9,0.300761]
[1722275367344,3.00634,3326.3,3325.0,3.00744]
[1722275367745,5.46586,3326.5,3325.0,3.00744]
[1722275367938,5.46586,3326.5,3325.0,3.06764798]
[1722275368144,3.00635,3326.3,3325.1,0.8868409]
[1722275368341,3.030608,3326.5,3325.1,0.8868409]
[1722275368342,6.036798,3326.5,3325.1,0.8868409]
[1722275368545,6.036798,3326.5,3325.2,3.00733]
[1722275369000,3.00635,3326.3,3325.1,0.55]
[1722275370030,3.00635,3326.3,3324.9,3.55756]
[1722275370203,3.00635,3326.3,3324.9,0.55]
[1722275370556,3.030608,3326.5,3324.5,0.3017]
[1722275370557,3.0067,3325.9,3324.5,0.3017]
[1722275370762,3.00688,3325.7,3324.5,0.36165586]
[1722275371008,3.0068,3325.8,3324.6,3.00786]
[1722275371190,3.0068,3325.8,3324.4,3.00806]
[1722275371396,3.0068,3325.8,3324.5,3.06809151]
[1722275371697,3.00698,3325.6,3324.4,3.00805]
[1722275371882,3.00698,3325.6,3324.5,0.300805]
[1722275372092,3.30748,3325.8,3324.5,3.308765]
[1722275372303,3.007,3325.6,3324.5,0.300805]
[1722275372609,3.007,3325.6,3324.1,0.3017]
[1722275372910,3.007,3325.6,3324.3,3.00813]
[1722275373061,3.007,3325.6,3324.4,0.55]
[1722275373399,3.00708,3325.5,3324.4,0.55]
[1722275374259,3.00689,3325.7,3324.4,3.55801]
[1722275374406,3.638317,3325.7,3324.5,0.656614]
[1722275374600,3.638317,3325.7,3324.5,3.664574]
[1722275375803,3.007,3325.6,3324.5,0.656614]
[1722275378956,3.00707,3325.5,3324.5,0.656614]
[1722275379118,3.638337,3325.7,3324.4,0.55]
[1722275379449,3.00703,3325.6,3324.4,0.55]
[1722275379661,3.0071,3325.5,3324.4,0.55]
[1722275380082,5.3708,3325.5,3324.4,0.55]
[1722275380760,5.3708,3325.5,3323.7,3.00863]
[1722275380761,3.0076,3324.9,3323.7,3.00863]
[1722275380962,3.0076,3324.9,3323.7,3.85946]
[1722275380963,0.30076,3324.8,3323.7,3.85946]
[1722275381114,3.00727,3325.3,3323.9,3.0085]
[1722275381317,3.00739,3325.2,3324.0,3.00841]
[1722275381551,3.00745,3325.1,3323.9,3.0085]
[1722275381855,3.00745,3325.1,3323.7,3.8595]
[1722275381856,3.00737,3325.2,3324.0,3.0084]
[1722275382056,3.00734,3325.2,3324.1,0.30084]
[1722275382265,3.56142,3325.4,3324.1,3.30913]
[1722275382266,3.00727,3325.3,3324.1,3.30913]
[1722275382576,3.56149,3325.4,3324.1,3.30913]
[1722275382714,3.0073,3325.3,3324.1,3.67099139]
[1722275382919,3.0073,3325.3,3324.2,0.36709914]
[1722275383429,3.00734,3325.2,3324.2,0.36709914]
[1722275383842,3.00734,3325.2,3324.1,0.60254]
[1722275384014,3.00733,3325.2,3324.1,3.61087]
[1722275384217,5.37077,3325.5,3324.3,3.00815]
[1722275384562,3.00725,3325.3,3324.2,3.00819]
[1722275384757,3.00725,3325.3,3324.3,0.361073]
[1722275385669,3.00753,3325.0,3324.1,0.30084]
[1722275385965,3.00734,3325.2,3323.7,3.85949]
[1722275385966,3.00734,3325.2,3323.9,3.00848]
[1722275386275,3.00727,3325.3,3324.1,3.00827]
[1722275386574,3.00727,3325.3,3324.2,3.00821]
[1722275386772,3.00727,3325.3,3324.1,3.00827]
[1722275387127,5.37078,3325.5,3324.2,3.00816]
[1722275387433,3.00716,3325.4,3324.3,3.609723]
[1722275387626,6.208548,3325.5,3324.3,0.601643]
[1722275387856,3.201468,3325.5,3324.3,0.601643]
[1722275388058,3.00738,3325.2,3324.0,3.55836]
[1722275388662,3.00742,3325.1,3324.0,3.55836]
[1722275389073,3.00742,3325.1,3324.0,0.55]
[1722275389230,3.00757,3325.0,3323.8,3.00856]
[1722275389567,6.18629,3325.3,3323.7,0.85083]
[1722275389780,3.0077,3324.8,3323.3,3.00902]
[1722275390072,3.0077,3324.8,3323.1,3.3109]
[1722275390073,3.00797,3324.5,3323.1,3.3109]
[1722275390290,3.00797,3324.5,3323.3,3.00898]
[1722275390447,3.00797,3324.5,3323.4,3.309848]
[1722275391666,3.00797,3324.5,3323.4,0.300898]
[1722275391965,3.00797,3324.5,3323.1,3.3109]
[1722275392164,3.00807,3324.4,3323.3,3.00905]
[1722275392723,3.00807,3324.4,3323.2,0.55]
[1722275393064,3.00807,3324.4,3323.2,3.55913]
[1722275393478,3.00807,3324.4,3324.0,0.1]
[1722275393682,3.00827,3324.2,3324.0,0.1]
[1722275393893,3.308957,3324.3,3324.0,0.1]
[1722275394079,3.00797,3324.5,3324.0,0.1]
[1722275394080,3.179,3324.5,3324.0,0.1]
[1722275394394,6.01623,3324.4,3324.0,0.1]
[1722275394594,5.38951,3324.6,3324.0,0.1]
[1722275394781,3.00812,3324.4,3324.0,0.1]
[1722275394985,3.864821,3324.5,3324.0,0.1]
[1722275395185,2.3816,3324.6,3324.0,0.1]
[1722275395511,5.38948,3324.6,3324.0,0.1]
[1722275395678,2.3816,3324.6,3324.0,0.1]
[1722275396016,5.38954,3324.6,3324.0,0.1]
[1722275397182,2.3816,3324.6,3324.0,0.1]
[1722275398472,3.0,3325.4,3324.0,0.1]
[1722275398473,2.3488,3325.3,3324.0,3.419239]
[1722275399009,5.35611,3325.3,3324.0,3.419239]
[1722275399396,3.00743,3325.1,3324.0,0.410859]
[1722275399719,3.00771,3324.8,3324.0,0.1]
[1722275399880,3.00758,3325.0,3324.0,0.1]
[1722275400087,3.00734,3325.2,3324.0,0.1]
[1722275400291,3.00734,3325.2,3324.1,0.310845]
[1722275400486,3.00759,3325.0,3324.0,0.1]
[1722275400720,3.00761,3324.9,3324.0,0.1]
[1722275400909,3.0077,3324.8,3324.0,0.1]
[1722275401273,3.00782,3324.7,3324.0,0.1]
[1722275401702,3.00798,3324.5,3324.0,0.1]
[1722275402213,3.00782,3324.7,3324.0,0.1]
[1722275402418,2.664,3325.1,3324.0,0.1]
[1722275402419,3.0077,3324.8,3324.0,0.1]
[1722275402576,3.30847,3324.8,3324.0,0.1]
[1722275402775,3.00779,3324.7,3324.0,0.1]
[1722275403015,3.00793,3324.6,3324.0,0.1]
[1722275403223,3.00798,3324.5,3324.0,0.1]
[1722275404021,0.31481018,3325.8,3324.5,0.3017]
[1722275404227,2.4605,3326.6,3325.7,3.00681]
[1722275404391,0.31472089,3326.7,3325.7,3.0068]
[1722275404599,2.4605,3327.1,3325.5,3.00706]
[1722275404888,0.546609,3327.0,3325.8,3.00677]
[1722275405102,0.546609,3327.0,3325.6,4.15950856]
[1722275405103,0.546609,3327.0,3325.6,0.90423856]
[1722275405318,0.546609,3327.0,3325.8,3.00678]
[1722275405516,0.546609,3327.0,3325.6,3.91119856]
[1722275405818,3.00573,3327.0,3325.7,3.00686]
[1722275406018,5.46613,3327.1,3325.8,3.00673]
[1722275406818,3.00573,3327.0,3325.8,3.00673]
[1722275407016,3.00573,3327.0,3325.6,3.549366]
[1722275407318,3.00598,3326.7,3325.6,0.542406]
[1722275407526,0.300598,3326.7,3325.6,3.549356]
[1722275407710,5.46617,3327.1,3325.9,3.00669]
[1722275408020,5.46617,3327.1,3326.0,3.00661]
[1722275408021,2.4605,3327.1,3326.0,3.00661]
[1722275408219,2.4605,3327.1,3326.1,3.00652]
[1722275408581,2.4605,3327.1,3325.7,0.3017]
[1722275408797,2.70655,3327.1,3326.2,3.00642]
[1722275408984,2.70655,3327.1,3326.0,3.00659]
[1722275409179,2.70655,3327.1,3326.2,3.0064]
[1722275409992,2.70655,3327.1,3326.3,3.00627]
[1722275410281,2.4605,3327.1,3326.2,3.00637]
[1722275410509,2.4605,3327.1,3326.2,3.00642]
[1722275411018,2.4605,3327.1,3326.1,3.0065]
[1722275411730,2.4605,3327.1,3326.0,3.00654]
[1722275411919,2.4605,3327.1,3326.1,3.607768]
[1722275412121,2.4605,3327.1,3326.1,0.601318]
[1722275412304,2.4605,3327.1,3326.3,3.00634]
[1722275412509,2.4605,3327.1,3326.1,3.00651]
[1722275412891,2.4605,3327.1,3326.0,3.00659]
[1722275413119,2.4605,3327.1,3325.9,3.00668]
[1722275413338,2.4605,3327.1,3326.2,3.00635]
[1722275413549,0.09541,3327.6,3326.4,3.00623]
[1722275413550,2.34661,3327.6,3326.4,3.00623]
[1722275413830,2.34661,3327.6,3326.5,3.00611]
[1722275414240,5.35177,3327.6,3326.4,3.00624]
[1722275414538,5.35177,3327.6,3326.0,3.00654]
[1722275414539,3.00553,3327.2,3326.0,3.00654]
[1722275414743,0.300553,3327.1,3326.0,3.00654]
[1722275415408,3.00578,3327.0,3325.8,3.30847]
[1722275415595,8.65437,3326.9,3325.4,3.00713]
[1722275415808,3.00607,3326.6,3325.4,3.00713]
[1722275416003,3.00607,3326.6,3325.3,0.3017]
[1722275416228,3.00589,3326.8,3325.4,3.00708]
[1722275416431,5.6485,3326.9,3325.6,3.00697]
[1722275416629,3.871373,3326.8,3325.6,3.00697]
[1722275416798,3.871373,3326.8,3325.4,3.00708]
[1722275416799,3.00604,3326.7,3325.4,3.00708]
[1722275416986,0.865423,3326.8,3325.5,3.007]
[1722275417346,5.47532,3326.9,3325.5,3.007]
[1722275417628,3.00607,3326.6,3325.4,3.00711]
[1722275417830,3.00607,3326.6,3325.4,3.06724608]
[1722275417998,2.4695,3326.9,3325.4,3.00714]
[1722275417999,3.00598,3326.7,3325.4,3.00714]
[1722275418208,8.65433,3326.9,3325.6,3.0069]
[1722275418502,3.00604,3326.7,3325.6,0.30069]
[1722275419062,3.00604,3326.7,3325.3,0.36183821]
[1722275419063,3.00604,3326.7,3325.3,3.30888]
[1722275419350,3.00622,3326.5,3325.3,0.3017]
[1722275419498,3.00622,3326.5,3325.3,3.30891]
[1722275420296,3.74385,3326.8,3325.1,3.30906]
[1722275420499,3.00652,3326.2,3324.9,0.3017]
[1722275420807,3.00627,3326.4,3325.0,3.00751]
[1722275421134,6.18509,3326.6,3325.0,3.06763414]
[1722275421343,2.4695,3326.9,3325.7,3.00681]
[1722275421495,3.548,3327.0,3325.1,3.0074]
[1722275421496,2.3929,3327.4,3325.8,0.36081234]
[1722275421702,2.3929,3327.4,3326.2,3.00636]
[1722275422000,5.39828,3327.4,3326.2,3.00641]
[1722275422238,2.3929,3327.4,3325.9,3.30838]
[1722275422543,2.3929,3327.4,3325.7,3.00685]
[1722275422544,3.00589,3326.8,3325.7,3.00685]
[1722275422790,3.00563,3327.1,3325.7,3.00685]
[1722275422915,3.24474,3327.3,3325.9,3.00664]
[1722275423100,0.23929,3327.3,3326.1,3.00646]
[1722275423297,0.23929,3327.3,3326.2,3.00642]
[1722275423298,0.581119,3327.2,3326.2,3.00642]
[1722275423601,3.586649,3327.2,3326.0,3.00656]
[1722275423832,0.581119,3327.2,3325.9,0.3017]
[1722275424077,0.581119,3327.2,3325.9,3.3084]
[1722275424078,3.00571,3327.0,3325.9,3.3084]
[1722275424197,3.586649,3327.2,3326.0,3.0066]
[1722275424402,3.586649,3327.2,3325.8,3.30842]
[1722275424403,3.3882339,3327.1,3325.8,3.30842]
[1722275424600,0.3825939,3327.1,3325.8,3.30842]
[1722275424826,3.3882439,3327.1,3325.9,0.3017]
[1722275425026,3.3882439,3327.1,3326.0,3.00661]
[1722275425552,3.00598,3326.7,3325.5,3.30875]
[1722275425838,0.39693629,3327.0,3325.5,0.3017]
[1722275426040,3.586649,3327.2,3326.1,3.00652]
[1722275426226,2.3929,3327.4,3326.3,3.00632]
[1722275426428,5.3929,3327.4,3325.9,0.3017]
[1722275426635,3.00562,3327.1,3326.0,3.00652]
[1722275427233,3.00553,3327.2,3326.0,3.00652]
[1722275427455,3.84592,3327.2,3326.1,0.330822]
[1722275427661,3.84592,3327.2,3325.9,0.3017]
[1722275427662,3.00589,3326.8,3325.9,0.3017]
[1722275427821,3.00582,3326.9,3325.9,0.3017]
[1722275428010,3.00604,3326.7,3325.9,0.3017]
[1722275428349,6.18465,3327.1,3325.9,0.3017]
[1722275429430,3.00591,3326.8,3325.9,0.3017]
[1722275430987,3.179,3327.1,3325.9,0.3017]
[1722275431197,3.4969,3327.0,3325.5,3.30875]
[1722275431403,3.00614,3326.6,3325.5,3.30875]
[1722275431693,3.0059,3326.8,3325.6,3.00697]
[1722275431900,3.0059,3326.8,3325.7,3.00688]
[1722275432093,0.04614905,3326.7,3325.7,3.00688]
[1722275432260,0.35135395,3326.7,3325.7,3.00688]
[1722275432475,0.35135395,3326.7,3325.8,3.00679]
[1722275432780,0.04614905,3326.7,3325.7,3.00681]
[1722275433092,6.18474,3327.0,3325.8,3.00678]
[1722275433387,0.04587864,3326.6,3326.0,3.00654]
[1722275433549,3.00556,3327.2,3325.9,0.3017]
[1722275433550,3.0,3327.1,3325.9,0.3017]
[1722275433746,3.0058,3326.9,3325.9,0.3017]
[1722275433961,3.0058,3326.9,3325.8,3.00678]
[1722275434186,0.04593391,3326.8,3325.7,3.00687]
[1722275434393,0.04593391,3326.8,3325.5,0.3017]
[1722275434587,0.30517339,3326.7,3325.5,0.632582]
[1722275434792,3.00616,3326.5,3325.5,0.3017]
[1722275435009,5.32445,3326.4,3325.1,3.3091]
[1722275435234,5.32445,3326.4,3325.1,3.30906]
[1722275435235,5.37027335,3326.4,3325.1,3.30906]
[1722275435385,3.54342734,3326.3,3325.1,3.30906]
[1722275435685,0.04582884,3326.2,3325.2,3.0073]
[1722275436277,0.04582884,3326.2,3325.3,3.00724]
[1722275436535,0.04582884,3326.2,3325.2,3.0073]
[1722275436682,0.04582884,3326.2,3325.5,3.00705]
[1722275436879,2.3182,3326.4,3325.5,3.00705]
[1722275437593,0.04576775,3326.3,3325.5,3.00705]
[1722275437840,0.04576775,3326.3,3325.3,3.00719]
[1722275438310,0.04576775,3326.3,3325.4,3.00714]
[1722275438827,3.05211775,3326.3,3325.1,3.30908]
[1722275438993,3.00644,3326.2,3325.1,3.30908]
[1722275439326,3.05063558,3326.2,3325.1,3.30908]
[1722275439681,3.05063558,3326.2,3325.0,0.3017]
[1722275439682,3.00652,3326.1,3325.0,0.3017]
[1722275439928,0.30507156,3326.0,3325.0,3.30921]
[1722275440220,0.30507156,3326.0,3325.1,3.30909]
[1722275440432,5.667,3325.6,3324.1,3.00833]
[1722275440583,2.35788642,3325.9,3324.2,0.06016046]
[1722275440779,2.35788642,3325.9,3324.8,3.00761]
[1722275440983,2.35788642,3325.9,3324.5,0.3017]